[Event "*** Titled Tuesday Blitz"]
[Site "Chess.com"]
[Date "2020.05.05"]
[Round "2"]
[White "MightyGMpretender"]
[Black "DanielTitichoca"]
[Result "1-0"]
[WhiteElo "2572"]
[BlackElo "2296"]
[TimeControl "180+1"]
[EndTime "10:18:09 PDT"]
[Termination "MightyGMpretender won on time"]

1. Nf3 {[%clk 0:03:00.9]} 1... c5 {[%clk 0:02:58.4]} 2. c4 {[%clk 0:03:00.8]}
2... Nc6 {[%clk 0:02:58.7]} 3. Nc3 {[%clk 0:03:00.1]} 3... g6 {[%clk 0:02:58.7]}
4. e3 {[%clk 0:02:58.9]} 4... Nf6 {[%clk 0:02:47.4]} 5. d4 {[%clk 0:02:58.5]}
5... cxd4 {[%clk 0:02:48.3]} 6. exd4 {[%clk 0:02:58.4]} 6... d5 {[%clk
0:02:47.9]} 7. cxd5 {[%clk 0:02:59]} 7... Nxd5 {[%clk 0:02:48.8]} 8. Bc4 {[%clk
0:02:59.6]} 8... Nb6 {[%clk 0:02:45.8]} 9. Bb5 {[%clk 0:02:40.5]} 9... a6 {[%clk
0:02:37.3]} 10. Bxc6+ {[%clk 0:02:39.4]} 10... bxc6 {[%clk 0:02:38.2]} 11. O-O
{[%clk 0:02:32]} 11... Bg7 {[%clk 0:02:37.6]} 12. h3 {[%clk 0:02:32]} 12... O-O
{[%clk 0:02:36.2]} 13. Bg5 {[%clk 0:02:32.5]} 13... h6 {[%clk 0:02:33.7]} 14.
Bf4 {[%clk 0:02:30]} 14... Be6 {[%clk 0:02:26]} 15. Rc1 {[%clk 0:02:21.3]} 15...
Nd5 {[%clk 0:02:23.9]} 16. Bd2 {[%clk 0:02:17.4]} 16... Nxc3 {[%clk 0:02:10.9]}
17. bxc3 {[%clk 0:02:17.3]} 17... Bxa2 {[%clk 0:02:01.5]} 18. c4 {[%clk
0:02:16.7]} 18... Rb8 {[%clk 0:01:43.9]} 19. Qa4 {[%clk 0:02:13.3]} 19... Bb3
{[%clk 0:01:41.7]} 20. Qxa6 {[%clk 0:02:11.8]} 20... Qc7 {[%clk 0:01:02.6]} 21.
Ba5 {[%clk 0:02:05.1]} 21... Qb7 {[%clk 0:00:58.8]} 22. Qxb7 {[%clk 0:02:02.5]}
22... Rxb7 {[%clk 0:00:59.7]} 23. Rfe1 {[%clk 0:01:54.6]} 23... Ra8 {[%clk
0:00:55.8]} 24. Bd2 {[%clk 0:01:53.9]} 24... Ra4 {[%clk 0:00:51.7]} 25. Rb1
{[%clk 0:01:46.2]} 25... Rxc4 {[%clk 0:00:49.3]} 26. Re3 {[%clk 0:01:46.1]}
26... Bxd4 {[%clk 0:00:32.6]} 27. Rexb3 {[%clk 0:01:44.9]} 27... Rxb3 {[%clk
0:00:31.8]} 28. Rxb3 {[%clk 0:01:45.8]} 28... Bg7 {[%clk 0:00:31]} 29. Rb8+
{[%clk 0:01:42.8]} 29... Kh7 {[%clk 0:00:30.4]} 30. Rb7 {[%clk 0:01:43.3]} 30...
Bf6 {[%clk 0:00:29.1]} 31. Rc7 {[%clk 0:01:43.4]} 31... Rc2 {[%clk 0:00:27.6]}
32. Be3 {[%clk 0:01:42.9]} 32... Kg7 {[%clk 0:00:24.3]} 33. g4 {[%clk
0:01:43.2]} 33... e5 {[%clk 0:00:23.2]} 34. Nd2 {[%clk 0:01:40.3]} 34... Bd8
{[%clk 0:00:17.7]} 35. Rd7 {[%clk 0:01:36.4]} 35... Bh4 {[%clk 0:00:13.4]} 36.
Ne4 {[%clk 0:01:32.9]} 36... Rc4 {[%clk 0:00:13.8]} 37. Rxf7+ {[%clk 0:01:31.5]}
37... Kxf7 {[%clk 0:00:12.9]} 38. Nd6+ {[%clk 0:01:31.8]} 38... Ke6 {[%clk
0:00:13.8]} 39. Nxc4 {[%clk 0:01:30.3]} 39... Kd5 {[%clk 0:00:14.7]} 40. Nb6+
{[%clk 0:01:29]} 40... Ke4 {[%clk 0:00:15]} 41. Kf1 {[%clk 0:01:28.6]} 41... Kf3
{[%clk 0:00:11.6]} 42. Nd7 {[%clk 0:01:26.2]} 42... Ke4 {[%clk 0:00:07.8]} 43.
Bxh6 {[%clk 0:01:25.7]} 43... g5 {[%clk 0:00:07]} 44. Bg7 {[%clk 0:01:24]} 44...
c5 {[%clk 0:00:04.9]} 45. Nxc5+ {[%clk 0:01:19.2]} 45... Kf3 {[%clk 0:00:05.1]}
46. Nd3 {[%clk 0:01:19.2]} 46... e4 {[%clk 0:00:04.6]} 47. Ne1+ {[%clk
0:01:18.7]} 47... Kf4 {[%clk 0:00:04.8]} 48. Bd4 {[%clk 0:01:18.6]} 48... e3
{[%clk 0:00:03.3]} 49. Bxe3+ {[%clk 0:01:17]} 49... Ke4 {[%clk 0:00:03.7]} 50.
Ng2 {[%clk 0:01:17]} 1-0

[Event "*** Titled Tuesday Blitz"]
[Site "Chess.com"]
[Date "2020.05.05"]
[Round "2"]
[White "Artem_Koval"]
[Black "chorejason"]
[Result "1-0"]
[WhiteElo "2434"]
[BlackElo "2195"]
[TimeControl "180+1"]
[EndTime "10:18:09 PDT"]
[Termination "Artem_Koval won by resignation"]

1. e4 {[%clk 0:03:00.9]} 1... c5 {[%clk 0:03:00.4]} 2. Nf3 {[%clk 0:03:00.6]}
2... d6 {[%clk 0:03:01]} 3. d4 {[%clk 0:03:00.5]} 3... cxd4 {[%clk 0:03:01.9]}
4. Nxd4 {[%clk 0:03:01.4]} 4... Nf6 {[%clk 0:03:02.6]} 5. Nc3 {[%clk 0:03:01.8]}
5... g6 {[%clk 0:03:03.3]} 6. f4 {[%clk 0:03:01.2]} 6... Nc6 {[%clk 0:03:00.6]}
7. Nxc6 {[%clk 0:02:59.7]} 7... bxc6 {[%clk 0:03:01.5]} 8. Bd3 {[%clk
0:02:59.9]} 8... Bg7 {[%clk 0:03:00.8]} 9. O-O {[%clk 0:03:00.3]} 9... O-O
{[%clk 0:03:00.3]} 10. Kh1 {[%clk 0:03:00.6]} 10... Rb8 {[%clk 0:02:59.2]} 11.
Qe1 {[%clk 0:03:00.3]} 11... Qa5 {[%clk 0:02:53.9]} 12. Rb1 {[%clk 0:02:57.2]}
12... Qh5 {[%clk 0:02:47]} 13. Bd2 {[%clk 0:02:55.5]} 13... Ng4 {[%clk
0:02:45.3]} 14. Qg3 {[%clk 0:02:55.7]} 14... Nf6 {[%clk 0:02:30.2]} 15. f5
{[%clk 0:02:50.9]} 15... gxf5 {[%clk 0:02:09.3]} 16. exf5 {[%clk 0:02:50.3]}
16... Qg4 {[%clk 0:02:01.2]} 17. Qe3 {[%clk 0:02:41.5]} 17... Nd5 {[%clk
0:01:32.9]} 18. Nxd5 {[%clk 0:02:38.1]} 18... cxd5 {[%clk 0:01:33.8]} 19. Qxe7
{[%clk 0:02:34.3]} 19... Bb7 {[%clk 0:01:34.2]} 20. f6 {[%clk 0:02:25.5]} 20...
d4 {[%clk 0:01:27.4]} 21. Rf2 {[%clk 0:02:20.8]} 21... Rfe8 {[%clk 0:01:24.2]}
22. Qxd6 {[%clk 0:02:12.4]} 22... Bf8 {[%clk 0:00:55.2]} 23. Qf4 {[%clk
0:02:06.5]} 23... Qxf4 {[%clk 0:00:53.6]} 24. Bxf4 {[%clk 0:02:06]} 24... Rbc8
{[%clk 0:00:52.8]} 25. Bd2 {[%clk 0:01:24.1]} 25... a6 {[%clk 0:00:52.3]} 26.
Re1 {[%clk 0:01:14.5]} 26... Rxe1+ {[%clk 0:00:51.5]} 27. Bxe1 {[%clk
0:01:15.4]} 27... Re8 {[%clk 0:00:51.5]} 28. Re2 {[%clk 0:01:12.4]} 28... Rxe2
{[%clk 0:00:49.9]} 29. Bxe2 {[%clk 0:01:13.3]} 29... Bd6 {[%clk 0:00:50.3]} 30.
Bg3 {[%clk 0:01:04.9]} 30... Bxg3 {[%clk 0:00:46.6]} 31. hxg3 {[%clk 0:01:05.8]}
31... Be4 {[%clk 0:00:45.1]} 32. Bd3 {[%clk 0:01:00.7]} 32... Bb7 {[%clk
0:00:28.2]} 33. g4 {[%clk 0:00:55.1]} 33... h6 {[%clk 0:00:28.3]} 34. Kh2 {[%clk
0:00:54.1]} 34... Kf8 {[%clk 0:00:28.7]} 35. Kg3 {[%clk 0:00:53.5]} 35... Ke8
{[%clk 0:00:29.3]} 36. Kh4 {[%clk 0:00:47.4]} 36... Bxg2 {[%clk 0:00:28.6]} 37.
Kh5 {[%clk 0:00:47.3]} 37... a5 {[%clk 0:00:27.1]} 38. Kxh6 {[%clk 0:00:46]}
38... Bd5 {[%clk 0:00:26.3]} 39. a3 {[%clk 0:00:44.4]} 39... Kd7 {[%clk
0:00:26.5]} 40. Kg7 {[%clk 0:00:39.1]} 40... Ke6 {[%clk 0:00:26.5]} 41. g5
{[%clk 0:00:37.9]} 41... Ke5 {[%clk 0:00:26.9]} 42. g6 {[%clk 0:00:35.3]} 42...
fxg6 {[%clk 0:00:25.4]} 43. Bxg6 {[%clk 0:00:35.3]} 1-0

[Event "*** Titled Tuesday Blitz"]
[Site "Chess.com"]
[Date "2020.05.05"]
[Round "2"]
[White "Shivagami"]
[Black "etesungam"]
[Result "0-1"]
[WhiteElo "2148"]
[BlackElo "2416"]
[TimeControl "180+1"]
[EndTime "10:18:09 PDT"]
[Termination "etesungam won by resignation"]

1. d4 {[%clk 0:03:00.6]} 1... Nf6 {[%clk 0:02:57.8]} 2. c4 {[%clk 0:02:58.5]}
2... c6 {[%clk 0:02:57.2]} 3. Bf4 {[%clk 0:02:56.1]} 3... d5 {[%clk 0:02:56.5]}
4. e3 {[%clk 0:02:56.3]} 4... Bf5 {[%clk 0:02:55.6]} 5. Nc3 {[%clk 0:02:51.8]}
5... e6 {[%clk 0:02:55.5]} 6. Qb3 {[%clk 0:02:51.9]} 6... Qb6 {[%clk 0:02:45.3]}
7. c5 {[%clk 0:02:51.5]} 7... Qxb3 {[%clk 0:02:31.4]} 8. axb3 {[%clk 0:02:52.4]}
8... Nh5 {[%clk 0:02:31]} 9. Bxb8 {[%clk 0:02:51.6]} 9... Rxb8 {[%clk
0:02:30.1]} 10. Rxa7 {[%clk 0:02:51.6]} 10... Be7 {[%clk 0:02:13]} 11. Be2
{[%clk 0:02:48.3]} 11... Nf6 {[%clk 0:02:11.8]} 12. Nf3 {[%clk 0:02:38.9]} 12...
Nd7 {[%clk 0:01:48.4]} 13. Na4 {[%clk 0:02:00.9]} 13... Bd8 {[%clk 0:01:22.5]}
14. O-O {[%clk 0:01:56.1]} 14... b6 {[%clk 0:01:14.6]} 15. cxb6 {[%clk
0:01:56.1]} 15... Bxb6 {[%clk 0:01:06.2]} 16. Nxb6 {[%clk 0:01:49.3]} 16... Nxb6
{[%clk 0:01:05.9]} 17. Rc1 {[%clk 0:01:41.4]} 17... Nc8 {[%clk 0:01:05.4]} 18.
Rc7 {[%clk 0:01:35]} 18... Ne7 {[%clk 0:01:00.8]} 19. Rc3 {[%clk 0:00:47.9]}
19... Bg4 {[%clk 0:00:53.8]} 20. h3 {[%clk 0:00:35.1]} 20... Bxf3 {[%clk
0:00:53.7]} 21. gxf3 {[%clk 0:00:35.6]} 21... Rf8 {[%clk 0:00:47.2]} 22. Kf1
{[%clk 0:00:34.5]} 22... Kd8 {[%clk 0:00:47.4]} 23. Ra7 {[%clk 0:00:33.3]} 23...
Nc8 {[%clk 0:00:46.8]} 24. Ra5 {[%clk 0:00:29.2]} 24... Kd7 {[%clk 0:00:45.8]}
25. Ke1 {[%clk 0:00:24.6]} 25... Rb7 {[%clk 0:00:45.2]} 26. Ba6 {[%clk
0:00:20.7]} 26... Rc7 {[%clk 0:00:43.9]} 27. Kd2 {[%clk 0:00:17.3]} 27... Nd6
{[%clk 0:00:43.3]} 28. Bd3 {[%clk 0:00:17.4]} 28... Rb8 {[%clk 0:00:42.7]} 29.
Kc2 {[%clk 0:00:17.4]} 29... Rcb7 {[%clk 0:00:42.2]} 30. Rac5 {[%clk 0:00:16.9]}
30... Rb6 {[%clk 0:00:40.6]} 31. e4 {[%clk 0:00:15.4]} 31... Nb7 {[%clk
0:00:40.5]} 32. Rxc6 {[%clk 0:00:13.9]} 32... Rxc6 {[%clk 0:00:39.8]} 33. Bb5
{[%clk 0:00:14.1]} 33... Nd8 {[%clk 0:00:39.2]} 34. exd5 {[%clk 0:00:13.6]}
34... Rxb5 {[%clk 0:00:37.5]} 35. dxc6+ {[%clk 0:00:13.7]} 35... Nxc6 {[%clk
0:00:38.2]} 0-1

[Event "*** Titled Tuesday Blitz"]
[Site "Chess.com"]
[Date "2020.05.05"]
[Round "2"]
[White "aakankshachess"]
[Black "Peng_Li-Min"]
[Result "1-0"]
[WhiteElo "2504"]
[BlackElo "2699"]
[TimeControl "180+1"]
[EndTime "10:18:11 PDT"]
[Termination "aakankshachess won on time"]

1. e4 {[%clk 0:03:00.9]} 1... c5 {[%clk 0:02:59.2]} 2. Nf3 {[%clk 0:03:00.8]}
2... d6 {[%clk 0:02:59]} 3. Bb5+ {[%clk 0:03:00.8]} 3... Nd7 {[%clk 0:02:53]} 4.
O-O {[%clk 0:02:59.9]} 4... Nf6 {[%clk 0:02:52.2]} 5. Qe2 {[%clk 0:02:57.1]}
5... e5 {[%clk 0:02:49.9]} 6. c3 {[%clk 0:02:56.6]} 6... a6 {[%clk 0:02:25.5]}
7. Ba4 {[%clk 0:02:55.9]} 7... b5 {[%clk 0:02:22.3]} 8. Bc2 {[%clk 0:02:55.8]}
8... Bb7 {[%clk 0:02:22.2]} 9. d4 {[%clk 0:02:55]} 9... Be7 {[%clk 0:02:21.3]}
10. Rd1 {[%clk 0:02:50.6]} 10... Qc7 {[%clk 0:02:20]} 11. dxe5 {[%clk
0:02:45.7]} 11... dxe5 {[%clk 0:02:20.9]} 12. Nbd2 {[%clk 0:02:45]} 12... O-O
{[%clk 0:02:20]} 13. Nf1 {[%clk 0:02:45.2]} 13... c4 {[%clk 0:02:19.4]} 14. Ng3
{[%clk 0:02:43.8]} 14... Rfd8 {[%clk 0:02:17.9]} 15. Nf5 {[%clk 0:02:40.6]}
15... Bf8 {[%clk 0:02:17.4]} 16. Bg5 {[%clk 0:02:39.7]} 16... h6 {[%clk
0:02:12.8]} 17. Bh4 {[%clk 0:02:04.4]} 17... g6 {[%clk 0:02:02.7]} 18. Ne3
{[%clk 0:02:03.5]} 18... Be7 {[%clk 0:01:53.9]} 19. Bg3 {[%clk 0:01:56.4]} 19...
Nh5 {[%clk 0:00:57.3]} 20. Nd5 {[%clk 0:01:50]} 20... Bxd5 {[%clk 0:00:56.4]}
21. exd5 {[%clk 0:01:31]} 21... Bd6 {[%clk 0:00:50.8]} 22. Nd2 {[%clk 0:01:27]}
22... Nxg3 {[%clk 0:00:47.8]} 23. hxg3 {[%clk 0:01:26.6]} 23... Kg7 {[%clk
0:00:39.2]} 24. Ne4 {[%clk 0:01:26]} 24... f5 {[%clk 0:00:39.2]} 25. Nd2 {[%clk
0:01:14]} 25... h5 {[%clk 0:00:32.4]} 26. Nf3 {[%clk 0:01:11.6]} 26... Nc5
{[%clk 0:00:29.4]} 27. b4 {[%clk 0:01:05.9]} 27... Nd3 {[%clk 0:00:19.5]} 28.
Ng5 {[%clk 0:01:02.9]} 28... Qe7 {[%clk 0:00:17.6]} 29. Ne6+ {[%clk 0:01:02.3]}
29... Kh7 {[%clk 0:00:17]} 30. Nxd8 {[%clk 0:01:02.3]} 30... Rxd8 {[%clk
0:00:17.9]} 31. Bxd3 {[%clk 0:01:02.5]} 31... cxd3 {[%clk 0:00:18.8]} 32. Qxd3
{[%clk 0:01:02.9]} 32... Rc8 {[%clk 0:00:19.1]} 33. a4 {[%clk 0:01:02.2]} 33...
Qd7 {[%clk 0:00:18.7]} 34. axb5 {[%clk 0:01:02.2]} 34... axb5 {[%clk 0:00:19.6]}
35. Ra6 {[%clk 0:01:01.4]} 35... Rc4 {[%clk 0:00:18.8]} 36. Rda1 {[%clk
0:01:01]} 36... Kh6 {[%clk 0:00:18.6]} 37. Qd2+ {[%clk 0:01:00.4]} 37... f4
{[%clk 0:00:18.3]} 38. gxf4 {[%clk 0:00:58.9]} 38... exf4 {[%clk 0:00:19.2]} 39.
Qe2 {[%clk 0:00:57.3]} 39... Rc7 {[%clk 0:00:05.1]} 40. Qe6 {[%clk 0:00:55.8]}
40... Qxe6 {[%clk 0:00:05.4]} 41. dxe6 {[%clk 0:00:56.1]} 41... Be5 {[%clk
0:00:06.3]} 42. Rc1 {[%clk 0:00:55.3]} 42... Kg5 {[%clk 0:00:05.7]} 43. Rb6
{[%clk 0:00:54.5]} 43... Kf6 {[%clk 0:00:05.5]} 44. Rxb5 {[%clk 0:00:54.6]}
44... Kxe6 {[%clk 0:00:05.9]} 45. Re1 {[%clk 0:00:54.8]} 1-0

[Event "*** Titled Tuesday Blitz"]
[Site "Chess.com"]
[Date "2020.05.05"]
[Round "2"]
[White "Luibov_AN"]
[Black "Gvetadze"]
[Result "0-1"]
[WhiteElo "2089"]
[BlackElo "2379"]
[TimeControl "180+1"]
[EndTime "10:18:11 PDT"]
[Termination "Gvetadze won by resignation"]

1. d4 {[%clk 0:03:00.9]} 1... Nf6 {[%clk 0:02:59.5]} 2. Nf3 {[%clk 0:03:00.8]}
2... g6 {[%clk 0:02:59.3]} 3. Bg5 {[%clk 0:03:00.1]} 3... Bg7 {[%clk 0:02:59.3]}
4. Nbd2 {[%clk 0:03:00.3]} 4... O-O {[%clk 0:02:59.2]} 5. e4 {[%clk 0:02:59.9]}
5... d6 {[%clk 0:02:59.4]} 6. Bc4 {[%clk 0:02:59]} 6... Nbd7 {[%clk 0:02:58.9]}
7. c3 {[%clk 0:02:59.1]} 7... e5 {[%clk 0:02:58.4]} 8. O-O {[%clk 0:02:57.2]}
8... c6 {[%clk 0:02:58.5]} 9. a4 {[%clk 0:02:56.7]} 9... Re8 {[%clk 0:02:56.5]}
10. Re1 {[%clk 0:02:56.3]} 10... Qc7 {[%clk 0:02:55.3]} 11. a5 {[%clk
0:02:53.3]} 11... a6 {[%clk 0:02:54.9]} 12. Qb3 {[%clk 0:02:48.9]} 12... Nf8
{[%clk 0:02:53.7]} 13. dxe5 {[%clk 0:02:41.9]} 13... dxe5 {[%clk 0:02:53.2]} 14.
Qc2 {[%clk 0:02:36.8]} 14... Be6 {[%clk 0:02:50.1]} 15. Bf1 {[%clk 0:02:36.3]}
15... h6 {[%clk 0:02:46]} 16. Be3 {[%clk 0:02:36]} 16... N8d7 {[%clk 0:02:41.2]}
17. h3 {[%clk 0:02:35.5]} 17... Nh5 {[%clk 0:02:39.6]} 18. Nc4 {[%clk
0:02:34.2]} 18... Nf4 {[%clk 0:02:23.9]} 19. Bb6 {[%clk 0:02:25.6]} 19... Qb8
{[%clk 0:02:22.7]} 20. Rad1 {[%clk 0:02:21.7]} 20... Bxc4 {[%clk 0:02:20.1]} 21.
Bxc4 {[%clk 0:02:20.5]} 21... Nxb6 {[%clk 0:02:18.9]} 22. axb6 {[%clk
0:02:20.6]} 22... Qc8 {[%clk 0:02:16.4]} 23. Qb3 {[%clk 0:02:14.3]} 23... Rf8
{[%clk 0:02:13.8]} 24. Rd6 {[%clk 0:02:05.8]} 24... Qe8 {[%clk 0:01:17.2]} 25.
Red1 {[%clk 0:01:54.1]} 25... Kh8 {[%clk 0:01:12.4]} 26. Kh2 {[%clk 0:01:34.4]}
26... f5 {[%clk 0:01:09.1]} 27. g3 {[%clk 0:01:21.7]} 27... fxe4 {[%clk
0:01:04]} 28. Nh4 {[%clk 0:01:15.4]} 28... Qe7 {[%clk 0:00:27.8]} 29. Rd7 {[%clk
0:00:56.1]} 29... Qg5 {[%clk 0:00:26.6]} 30. Rxg7 {[%clk 0:00:36.2]} 30... Kxg7
{[%clk 0:00:25.9]} 31. Rd7+ {[%clk 0:00:35.8]} 31... Kh8 {[%clk 0:00:26]} 32.
Qd1 {[%clk 0:00:23.2]} 32... Nd3 {[%clk 0:00:23.1]} 33. Qg4 {[%clk 0:00:11.7]}
33... Rxf2+ {[%clk 0:00:22]} 34. Kg1 {[%clk 0:00:11.3]} 34... Qc1+ {[%clk
0:00:21.4]} 0-1

[Event "*** Titled Tuesday Blitz"]
[Site "Chess.com"]
[Date "2020.05.05"]
[Round "2"]
[White "TheBigBoss04"]
[Black "PlotnikovPavel"]
[Result "1-0"]
[WhiteElo "2720"]
[BlackElo "2490"]
[TimeControl "180+1"]
[EndTime "10:18:12 PDT"]
[Termination "TheBigBoss04 won by resignation"]

1. d4 {[%clk 0:03:00.9]} 1... e6 {[%clk 0:03:00]} 2. Bf4 {[%clk 0:02:59.5]} 2...
d5 {[%clk 0:02:59.2]} 3. e3 {[%clk 0:02:59.5]} 3... Bd6 {[%clk 0:02:58.8]} 4.
Nf3 {[%clk 0:02:59.1]} 4... Nf6 {[%clk 0:02:57.9]} 5. Nbd2 {[%clk 0:02:58.5]}
5... O-O {[%clk 0:02:57.8]} 6. Bd3 {[%clk 0:02:58.3]} 6... c5 {[%clk 0:02:56.6]}
7. c3 {[%clk 0:02:57.9]} 7... Nc6 {[%clk 0:02:53.8]} 8. dxc5 {[%clk 0:02:55.5]}
8... Bxc5 {[%clk 0:02:51.3]} 9. e4 {[%clk 0:02:52.5]} 9... Qb6 {[%clk
0:02:44.4]} 10. O-O {[%clk 0:02:49.8]} 10... dxe4 {[%clk 0:02:24.9]} 11. Nxe4
{[%clk 0:02:50.7]} 11... Nxe4 {[%clk 0:02:24.8]} 12. Bxe4 {[%clk 0:02:51.6]}
12... a5 {[%clk 0:02:23.7]} 13. Bxh7+ {[%clk 0:02:44.5]} 13... Kxh7 {[%clk
0:02:23.4]} 14. Ng5+ {[%clk 0:02:44.7]} 14... Kg6 {[%clk 0:02:21.3]} 15. Qd3+
{[%clk 0:02:43.5]} 15... Kf6 {[%clk 0:02:14.1]} 16. Nh7+ {[%clk 0:01:58.5]}
16... Ke7 {[%clk 0:02:09.7]} 17. Bg5+ {[%clk 0:01:58.3]} 17... f6 {[%clk
0:02:00.9]} 18. Nxf8 {[%clk 0:01:53.3]} 18... Kxf8 {[%clk 0:01:59.7]} 19. Bh4
{[%clk 0:01:47.5]} 19... e5 {[%clk 0:01:58.6]} 20. Qh7 {[%clk 0:01:39.6]} 20...
Be6 {[%clk 0:01:58]} 21. Qh8+ {[%clk 0:01:38.1]} 21... Bg8 {[%clk 0:01:57.7]}
22. Rad1 {[%clk 0:01:32.3]} 22... Ne7 {[%clk 0:01:49.2]} 23. Kh1 {[%clk
0:01:21.9]} 23... Ng6 {[%clk 0:01:39.8]} 24. Qh5 {[%clk 0:01:16.6]} 24... Nf4
{[%clk 0:01:36.8]} 25. Qh8 {[%clk 0:00:59.8]} 25... Qc6 {[%clk 0:01:24.2]} 26.
f3 {[%clk 0:00:57.1]} 26... Re8 {[%clk 0:01:22]} 27. Bf2 {[%clk 0:00:49.3]}
27... Ng6 {[%clk 0:01:15.1]} 28. Bxc5+ {[%clk 0:00:36.2]} 28... Qxc5 {[%clk
0:01:13.7]} 29. Qh5 {[%clk 0:00:30.1]} 29... Bf7 {[%clk 0:01:11.2]} 30. Rd7
{[%clk 0:00:26.7]} 30... Qc6 {[%clk 0:01:06.7]} 31. Rfd1 {[%clk 0:00:25.2]}
31... Kg8 {[%clk 0:01:02.1]} 32. Rd8 {[%clk 0:00:21.6]} 32... Nf4 {[%clk
0:00:50.9]} 33. Rxe8+ {[%clk 0:00:19.5]} 33... Qxe8 {[%clk 0:00:50.9]} 34. Qf5
{[%clk 0:00:19.1]} 34... Qe6 {[%clk 0:00:46.4]} 35. Rd8+ {[%clk 0:00:17.6]}
35... Qe8 {[%clk 0:00:41.1]} 36. Rxe8+ {[%clk 0:00:16.9]} 36... Bxe8 {[%clk
0:00:42]} 37. g3 {[%clk 0:00:13.1]} 37... Ne2 {[%clk 0:00:41.4]} 38. Qc2 {[%clk
0:00:09.6]} 38... Bb5 {[%clk 0:00:40.1]} 39. Qb3+ {[%clk 0:00:09.1]} 1-0

[Event "*** Titled Tuesday Blitz"]
[Site "Chess.com"]
[Date "2020.05.05"]
[Round "2"]
[White "tsvet2005"]
[Black "WIDBIFS"]
[Result "0-1"]
[WhiteElo "2524"]
[BlackElo "2784"]
[TimeControl "180+1"]
[EndTime "10:18:13 PDT"]
[Termination "WIDBIFS won by checkmate"]

1. d4 {[%clk 0:03:00.9]} 1... Nf6 {[%clk 0:02:58.5]} 2. c4 {[%clk 0:03:01.2]}
2... g6 {[%clk 0:02:58.8]} 3. Nc3 {[%clk 0:03:01.7]} 3... Bg7 {[%clk 0:02:58.7]}
4. e4 {[%clk 0:03:01.7]} 4... O-O {[%clk 0:02:59.3]} 5. Be2 {[%clk 0:03:01.7]}
5... d6 {[%clk 0:02:59.6]} 6. Be3 {[%clk 0:03:01.9]} 6... e5 {[%clk 0:02:58.4]}
7. d5 {[%clk 0:03:02.3]} 7... c6 {[%clk 0:02:57.1]} 8. h4 {[%clk 0:03:00.2]}
8... cxd5 {[%clk 0:02:55.4]} 9. cxd5 {[%clk 0:03:01.1]} 9... h5 {[%clk
0:02:54.1]} 10. f3 {[%clk 0:02:57.4]} 10... a6 {[%clk 0:02:53.5]} 11. Nh3 {[%clk
0:02:54.7]} 11... Bxh3 {[%clk 0:02:52.1]} 12. Rxh3 {[%clk 0:02:54.4]} 12... Nbd7
{[%clk 0:02:52.7]} 13. g4 {[%clk 0:02:44.8]} 13... Rc8 {[%clk 0:02:49.5]} 14. g5
{[%clk 0:02:37.2]} 14... Nh7 {[%clk 0:02:43]} 15. Qd2 {[%clk 0:02:25.9]} 15...
b5 {[%clk 0:02:35.6]} 16. Rc1 {[%clk 0:02:15.8]} 16... f6 {[%clk 0:02:19.6]} 17.
Rg3 {[%clk 0:02:15.2]} 17... fxg5 {[%clk 0:02:15.3]} 18. hxg5 {[%clk 0:02:16.1]}
18... Qe7 {[%clk 0:02:11]} 19. Kf1 {[%clk 0:01:59.5]} 19... Rf4 {[%clk
0:02:05.9]} 20. Bxf4 {[%clk 0:01:53.8]} 20... exf4 {[%clk 0:02:06.8]} 21. Rg2
{[%clk 0:01:50.6]} 21... Rf8 {[%clk 0:02:01.1]} 22. Nd1 {[%clk 0:01:37.8]} 22...
Ne5 {[%clk 0:01:59.2]} 23. Nf2 {[%clk 0:01:15.5]} 23... Nxg5 {[%clk 0:01:58.7]}
24. Qd1 {[%clk 0:01:15.7]} 24... Ngf7 {[%clk 0:01:27.4]} 25. b3 {[%clk
0:01:10.4]} 25... g5 {[%clk 0:01:19.4]} 26. Nd3 {[%clk 0:01:08.4]} 26... g4
{[%clk 0:01:13.8]} 27. Nxf4 {[%clk 0:01:00.5]} 27... Ng5 {[%clk 0:01:06]} 28.
Nxh5 {[%clk 0:00:28.4]} 28... gxf3 {[%clk 0:00:57.9]} 29. Rf2 {[%clk 0:00:28.8]}
29... Nxe4 {[%clk 0:00:41.7]} 30. Rxf3 {[%clk 0:00:20.3]} 30... Nxf3 {[%clk
0:00:37.3]} 31. Bxf3 {[%clk 0:00:21.2]} 31... Qh4 {[%clk 0:00:37.2]} 32. Qe2
{[%clk 0:00:13.2]} 32... Qh1# {[%clk 0:00:19.5]} 0-1

[Event "*** Titled Tuesday Blitz"]
[Site "Chess.com"]
[Date "2020.05.05"]
[Round "2"]
[White "Abund"]
[Black "Quattroporte300"]
[Result "1-0"]
[WhiteElo "2649"]
[BlackElo "2320"]
[TimeControl "180+1"]
[EndTime "10:18:13 PDT"]
[Termination "Abund won by resignation"]

1. Nf3 {[%clk 0:03:00.9]} 1... Nf6 {[%clk 0:02:58.3]} 2. c4 {[%clk 0:03:01.1]}
2... e6 {[%clk 0:02:57.7]} 3. Nc3 {[%clk 0:03:01.4]} 3... d5 {[%clk 0:02:56.8]}
4. d4 {[%clk 0:03:01.9]} 4... c6 {[%clk 0:02:56.9]} 5. Bg5 {[%clk 0:03:00.9]}
5... Nbd7 {[%clk 0:02:56.6]} 6. e3 {[%clk 0:03:00.6]} 6... Qa5 {[%clk
0:02:56.7]} 7. Nd2 {[%clk 0:02:58.1]} 7... Bb4 {[%clk 0:02:55.1]} 8. Qc2 {[%clk
0:02:57]} 8... O-O {[%clk 0:02:53.4]} 9. Be2 {[%clk 0:02:55.4]} 9... h6 {[%clk
0:02:51.9]} 10. Bh4 {[%clk 0:02:52.4]} 10... Re8 {[%clk 0:02:31]} 11. O-O {[%clk
0:02:50]} 11... Qc7 {[%clk 0:02:15.1]} 12. Rac1 {[%clk 0:02:31.3]} 12... a6
{[%clk 0:02:09.9]} 13. c5 {[%clk 0:02:22.7]} 13... e5 {[%clk 0:01:33.1]} 14. Bg3
{[%clk 0:02:19.6]} 14... Qd8 {[%clk 0:01:27.6]} 15. Rfe1 {[%clk 0:02:14.5]}
15... e4 {[%clk 0:01:21.5]} 16. a3 {[%clk 0:02:07]} 16... Ba5 {[%clk 0:01:21.4]}
17. b4 {[%clk 0:01:58.1]} 17... Bc7 {[%clk 0:01:20.4]} 18. a4 {[%clk 0:01:58.5]}
18... Nf8 {[%clk 0:01:13.3]} 19. b5 {[%clk 0:01:52.7]} 19... Bd7 {[%clk
0:00:56.4]} 20. bxa6 {[%clk 0:01:48.6]} 20... bxa6 {[%clk 0:00:54.7]} 21. Rb1
{[%clk 0:01:38.3]} 21... Bc8 {[%clk 0:00:36.8]} 22. Rb2 {[%clk 0:01:25.6]} 22...
Bxg3 {[%clk 0:00:34]} 23. hxg3 {[%clk 0:01:17.8]} 23... Qc7 {[%clk 0:00:34.9]}
24. Reb1 {[%clk 0:01:13.4]} 24... N8d7 {[%clk 0:00:29.5]} 25. a5 {[%clk
0:00:50.1]} 25... Nh7 {[%clk 0:00:25.9]} 26. Na4 {[%clk 0:00:46.3]} 26... Nhf8
{[%clk 0:00:22.6]} 27. Nb6 {[%clk 0:00:46]} 27... Nxb6 {[%clk 0:00:16.1]} 28.
cxb6 {[%clk 0:00:43.5]} 28... Qb7 {[%clk 0:00:15.9]} 29. Nb3 {[%clk 0:00:43.6]}
29... Ne6 {[%clk 0:00:15]} 30. Bg4 {[%clk 0:00:39.9]} 30... Nxd4 {[%clk
0:00:10]} 31. Bxc8 {[%clk 0:00:30.4]} 31... Nxc2 {[%clk 0:00:07.9]} 32. Bxb7
{[%clk 0:00:30.6]} 32... Na3 {[%clk 0:00:07.6]} 33. Bxc6 {[%clk 0:00:29.4]}
33... Nxb1 {[%clk 0:00:06.9]} 34. b7 {[%clk 0:00:27.4]} 34... Rad8 {[%clk
0:00:04.8]} 35. Rxb1 {[%clk 0:00:27]} 1-0